lending/lending_fUSD_20240603
["ID","MTS","AMOUNT","RATE_DAILY","PERIOD"]
[328477250,1717427442207,-500.0,0.00032775,4]
[328477251,1717427442216,-2186.48,0.00032775,4]
[328477252,1717427442226,-355.50158487,0.00032812,2]
[328477253,1717427442235,-1753.14915593,0.00032876,90]
[328477254,1717427442245,-153.21613592,0.00032877,7]
[328477255,1717427442254,-2000.0,0.000329,2]
[328477256,1717427442264,-171.88582515,0.00032967,3]
[328477257,1717427442275,-2189.00996229,0.00032968,2]
[328477258,1717427442284,-234.53919679,0.00032974,6]
[328477259,1717427442294,-1093.72239001,0.00032998,31]
[328477260,1717427442429,-906.27760999,0.00032998,31]
[328477261,1717427442439,-155.0,0.00033,4]
[328477262,1717427442449,-746.0,0.00033014,2]
[328477263,1717427442458,-614.0,0.00033014,2]
[328477264,1717427442468,-500.0,0.00033033,10]
[328477265,1717427442478,-200.0,0.00033033,10]
[328477266,1717427442486,-689.71875,0.00033048,4]
[328477267,1717427442499,-809.91837229,0.00033048,4]
[328477268,1717427442511,-655.43287771,0.00033048,4]
[328477269,1717427442520,-500.0,0.00033048,4]
[328477270,1717427442532,-1250.71,0.00033048,4]
[328477271,1717427442541,-753.26,0.00033048,4]
[328477272,1717427442551,-555.87,0.00033048,4]
[328477273,1717427442561,-562.04,0.00033048,4]
[328477274,1717427442571,-500.0,0.00033048,4]
[328477275,1717427442580,-733.77,0.00033048,4]
[328477276,1717427442590,-500.0,0.00033048,4]
[328477277,1717427442599,-500.0,0.00033048,4]
[328477278,1717427442608,-1328.43,0.00033048,4]
[328477279,1717427442618,-500.0,0.00033048,4]
[328477280,1717427442627,-635.0,0.00033048,4]
[328477281,1717427442637,-678.97,0.00033048,4]
[328477282,1717427442647,-4094.76112229,0.00033048,4]
[328477283,1717427442659,-2379.84887771,0.00033048,4]
[328477284,1717427442668,-500.0,0.00033048,4]
[328477285,1717427442679,-549.62,0.00033048,4]
[328477286,1717427442688,-500.0,0.00033048,4]
[328477287,1717427442698,-1233.03,0.00033048,4]
[328477288,1717427442708,-656.58,0.00033048,4]
[328477289,1717427442718,-500.0,0.00033048,4]
[328477290,1717427442727,-833.74262752,0.00033048,4]
[328477291,1717427442740,-717.09737248,0.00033048,4]
[328477292,1717427442751,-500.0,0.00033048,4]
[328477293,1717427442761,-1273.22,0.00033048,4]
[328477294,1717427442770,-500.0,0.00033048,4]
[328477295,1717427442779,-1023.85,0.00033048,4]
[328477296,1717427442789,-500.0,0.00033048,4]
[328477297,1717427442799,-500.0,0.00033048,4]
[328477298,1717427442808,-500.0,0.00033048,4]
[328477299,1717427442818,-1452.21,0.00033048,4]
[328477300,1717427442828,-500.0,0.00033048,4]
[328477301,1717427442838,-500.0,0.00033048,4]
[328477302,1717427442848,-500.0,0.00033048,4]
[328477303,1717427442858,-500.0,0.00033048,4]
[328477304,1717427442871,-500.0,0.00033048,4]
[328477305,1717427442878,-645.69,0.00033048,4]
[328477306,1717427442888,-500.0,0.00033048,4]
[328477307,1717427442898,-500.0,0.00033048,4]
[328477308,1717427442907,-500.0,0.00033048,4]
[328477309,1717427442916,-962.97,0.00033048,4]
[328477310,1717427442925,-500.0,0.00033048,4]
[328477311,1717427442935,-500.0,0.00033048,4]
[328477312,1717427442944,-500.0,0.00033048,4]
[328477313,1717427442953,-500.0,0.00033048,4]
[328477314,1717427442965,-1720.6,0.00033048,4]
[328477315,1717427442976,-500.0,0.00033049,4]
[328477316,1717427442985,-500.0,0.00033049,4]
[328477318,1717427442995,-500.0,0.00033049,4]
[328477319,1717427443004,-1043.0,0.00033049,4]
[328477321,1717427443015,-500.0,0.00033049,4]
[328477323,1717427443024,-559.92,0.00033049,4]
[328477325,1717427443034,-500.0,0.00033049,4]
[328477326,1717427443046,-500.0,0.00033049,4]
[328477327,1717427443055,-1491.69,0.00033049,4]
[328477328,1717427443064,-500.0,0.00033049,4]
[328477329,1717427443074,-500.0,0.00033049,4]
[328477330,1717427443083,-500.0,0.00033049,4]
[328477331,1717427443093,-1133.03,0.00033049,4]
[328477332,1717427443103,-500.0,0.00033049,4]
[328477333,1717427443113,-245.1,0.00033049,4]
[328477334,1717427443122,-281.49,0.00033049,4]
[328477335,1717427443131,-500.0,0.00033049,4]
[328477336,1717427443141,-500.0,0.00033049,4]
[328477337,1717427443151,-583.05,0.00033049,4]
[328477338,1717427443161,-500.0,0.00033049,4]
[328477339,1717427443172,-565.24,0.00033049,4]
[328477340,1717427443181,-500.0,0.00033049,4]
[328477341,1717427443190,-500.0,0.00033049,4]
[328477342,1717427443200,-2186.48,0.00033049,4]
[328477343,1717427443209,-150.0,0.00033074,2]
[328477344,1717427443219,-150.0,0.00033075,2]
[328477345,1717427443229,-196.0,0.0003308,20]
[328477346,1717427443238,-150.0,0.00033093,2]
[328477347,1717427443248,-150.0,0.00033098,2]
[328477348,1717427443257,-150.0,0.00033117,2]
[328477349,1717427443267,-515.45357038,0.00033141,4]
[328477350,1717427443276,-9744.54419163,0.00033142,2]
[328477351,1717427443289,-3743.35663518,0.00033142,2]
[328477353,1717427443307,-500.0,0.00033048,4]
[328477354,1717427443317,-2953.58111738,0.00033142,2]
[328477355,1717427443513,-2777.37983944,0.00033142,2]
[328477356,1717427443524,-998.59473456,0.00033142,2]
[328477357,1717427443536,-560.15048795,0.00033142,2]
[328477358,1717427443547,-20718.99504,0.00033142,2]
[328477359,1717427443558,-676.25098765,0.00033142,2]
[328477360,1717427443569,-4080.25346895,0.00033142,2]
[328477361,1717427443580,-87591.47536584,0.00033142,2]
[328477362,1717427443591,-594.14645248,0.00033142,2]
[328477363,1717427443610,-303.95,0.00031668,10]
[328477364,1717427443620,-2936.92346172,0.00033142,2]
[328477365,1717427443631,-3785.7754,0.00033142,2]
[328477366,1717427443642,-35556.36771722,0.00033142,2]
[328477367,1717427443652,-9493.5341628,0.0003315,4]
[328477368,1717427443662,-150.0,0.00033157,2]
[328477369,1717427443672,-150.0,0.00033169,2]
[328477370,1717427443682,-161.49426952,0.00033198,5]
[328477371,1717427443692,-173.70108263,0.00033198,5]
[328477372,1717427443701,-6750.4434,0.00033198,2]
[328477376,1717427443710,-500.0,0.000332,3]
[328477380,1717427443719,-549.0,0.000332,22]
[328477384,1717427443729,-161.49426952,0.000332,5]
[328477388,1717427443738,-355.50158487,0.000332,2]
[328477391,1717427443747,-173.70108262,0.000332,5]
[328477394,1717427443756,-2189.00996229,0.000332,2]
[328477396,1717427443765,-1052.72,0.00033205,3]
[328477397,1717427443775,-150.0,0.00033211,2]
[328477398,1717427443784,-154.00163495,0.00033217,7]
[328477399,1717427443794,-150.0,0.0003322,2]
[328477400,1717427443804,-300.0,0.00033222,2]
[328477401,1717427443813,-153.21613592,0.00033233,7]
[328477402,1717427443823,-294.21406988,0.0003324,2]
[328477403,1717427443831,-12449.28542539,0.00033242,2]
[328477404,1717427443878,-4749.2368703,0.00033242,2]
[328477405,1717427443888,-3854.17675832,0.00033242,2]
[328477406,1717427443898,-927.13671864,0.00033268,4]
[328477407,1717427443908,-150.5,0.0003327,15]
[328477408,1717427444034,-272.95,0.0003327,15]
[328477409,1717427444046,-5277.6361095,0.00033277,2]
[328477410,1717427444056,-4354.7622689,0.00033277,2]
[328477411,1717427444066,-3431.8884282,0.00033277,2]
[328477412,1717427444075,-2509.0145876,0.00033277,2]
[328477413,1717427444085,-1586.140747,0.00033277,2]
[328477414,1717427444096,-304.9963543,0.00033277,2]
[328477415,1717427444106,-304.9963543,0.00033277,2]
[328477416,1717427444118,-304.9963543,0.00033277,2]
[328477417,1717427444127,-304.9963543,0.00033277,2]
[328477418,1717427444136,-304.9963543,0.00033277,2]
[328477419,1717427444145,-150.5,0.0003328,15]
[328477420,1717427444154,-150.5,0.0003328,15]
[328477421,1717427444164,-150.5,0.0003329,15]
[328477422,1717427444173,-150.5,0.0003329,15]
[328477423,1717427444183,-2166.12623714,0.0003329,4]
[328477424,1717427444193,-193.65994415,0.0003329,2]
[328477425,1717427444203,-193.65994415,0.0003329,2]
[328477426,1717427444212,-110359.73883178,0.00033298,13]
[328477427,1717427444243,-88101.08772962,0.00033298,13]
[328477428,1717427444252,-55227.90469677,0.00033298,4]
[328477429,1717427444265,-24905.2892415,0.00033298,4]
[328477430,1717427444276,-38810.00004624,0.00033298,4]
[328477432,1717427444288,-6861.78495721,0.00033298,4]
[328477440,1717427444385,-187.88987415,0.00031579,2]
[328477441,1717427444394,-191.19854235,0.00033298,4]
[328477442,1717427444417,-500.0,0.00031679,4]
[328477443,1717427444427,-500.0,0.00031953,4]
[328477444,1717427444436,-500.0,0.00032227,4]
[328477445,1717427444446,-1347.59268996,0.00033298,4]
[328477446,1717427444459,-6888.29249047,0.00033298,4]
[328477447,1717427444471,-3747.00315544,0.00033298,4]
[328477448,1717427444482,-3783.10000002,0.00033298,4]
[328477449,1717427444495,-2523.8782412,0.00033298,4]
[328477450,1717427444505,-380.24392885,0.00033298,15]
[328477451,1717427444514,-200.22952517,0.00033298,4]
[328477452,1717427444524,-155.0,0.00033298,4]
[328477453,1717427444533,-155.0,0.00033298,4]
[328477454,1717427444543,-155.0,0.00033298,4]
[328477455,1717427444553,-718.31497258,0.00033298,4]
[328477456,1717427444563,-155.0,0.00033298,4]
[328477458,1717427444572,-309.999998,0.00033298,4]
[328477459,1717427444582,-155.0,0.00033298,4]
[328477460,1717427444591,-155.0,0.00033298,4]
[328477461,1717427444601,-544.77465953,0.00033298,4]
[328477462,1717427444611,-1881.44142,0.00033298,2]
[328477463,1717427444620,-958.6906279,0.00033298,2]
[328477464,1717427444630,-11131.48592965,0.00033299,4]
[328477465,1717427444639,-879.18232975,0.00033299,60]
[328477466,1717427444649,-150.01,0.00033299,2]
[328477467,1717427444659,-2550.30642574,0.00033299,2]
[328477468,1717427444668,-307.63431456,0.00033299,2]
[328477469,1717427444678,-6200.5099501,0.00033299,2]
[328477470,1717427444688,-304.9963543,0.00033299,2]
[328477471,1717427444697,-177.34533092,0.000333,5]
[328477472,1717427444707,-30694.40624628,0.000333,5]
[328477473,1717427444719,-638.19340764,0.000333,5]
[328477474,1717427444731,-607802.40458076,0.000333,5]
[328477475,1717427444743,-20377.77519079,0.000333,5]
[328477476,1717427444832,-500.0,0.00032501,4]
[328477478,1717427444841,-177.83230155,0.00032775,4]
[328477479,1717427444851,-93.86052906,0.000333,5]
[328477480,1717427444863,-286.93626806,0.000333,5]
[328477481,1717427444875,-1069.12942953,0.000333,5]
[328477482,1717427444886,-3344.56591795,0.000333,5]
[328477483,1717427444898,-5977.67332924,0.000333,5]
[328477484,1717427444909,-862.3800003,0.000333,5]
[328477485,1717427444920,-3892.95006634,0.000333,5]
[328477486,1717427444932,-7082.24146395,0.000333,5]
[328477488,1717427444943,-69195.3541098,0.000333,5]
[328477489,1717427444954,-2131.64769417,0.000333,5]
[328477503,1717427446811,-284.2125,0.000333,5]
[328477505,1717427446823,-2210.75000075,0.000333,5]
[328477508,1717427446836,-2754.84,0.000333,5]
[328477511,1717427446848,-743.74511592,0.000333,5]
[328477513,1717427446859,-306.76,0.000333,5]
[328477515,1717427446872,-11313.0,0.000333,5]
[328477517,1717427446883,-968.49131176,0.000333,5]
[328477519,1717427446894,-345.515,0.000333,5]
[328477521,1717427446905,-2636.23402685,0.000333,5]
[328477527,1717427447043,-1510.42471889,0.00030383,4]
[328477529,1717427447055,-83.0640418,0.00030383,4]
[328477531,1717427447064,-171.833,0.000332,2]
[328477533,1717427447074,-13528.3829582,0.000333,5]
[328477535,1717427447085,-678.83,0.000333,5]
[328477537,1717427447096,-1889.12070001,0.000333,5]
[328477540,1717427447521,-4592.15178615,0.000333,5]
[328477541,1717427447538,-6878.214984,0.000333,5]
[328477542,1717427447555,-1671.17631581,0.000333,5]
[328477543,1717427447571,-28425.56660543,0.000333,5]
[328477544,1717427447587,-349.90895128,0.000333,5]
[328477545,1717427447601,-849.99999997,0.000333,5]
[328477546,1717427447617,-431.96925012,0.000333,5]
[328477547,1717427447631,-59859.69214562,0.000333,5]
[328477548,1717427447646,-13726.0318588,0.000333,5]
[328477549,1717427447661,-3997.80695085,0.000333,5]
[328477550,1717427447676,-618.23133603,0.000333,5]
[328477551,1717427447692,-1346.35809449,0.000333,5]
[328477552,1717427447707,-3637.73846599,0.000333,5]
[328477553,1717427447722,-3597.99853864,0.000333,5]
[328477554,1717427476776,349.81,0.00031,30]
[328477559,1717427519805,3888.75526892,0.000192,2]
[328477561,1717427524765,10251.899504,0.000308,30]
[328477562,1717427525177,10251.899504,0.000308,30]
[328477566,1717427541777,6254.36307268,0.0002,2]
[328477575,1717427577495,171.58,0.00030616,91]
[328477576,1717427577555,168.05,0.00029247,120]
[328477577,1717427692732,10630.63365982,0.00017259,2]
[328477578,1717427731757,155.0,0.0002,2]
[328477579,1717427734933,658.24107386,0.00017259,2]
[328477580,1717427924361,713.53973876,0.00017807,2]
[328477581,1717427925838,6254.36307268,0.0002,2]
[328477582,1717427927713,241.30909122,0.00017259,2]
[328477584,1717428242255,241.30909122,0.00019725,2]
[328477585,1717428266906,713.53973876,0.00019725,2]
[328477586,1717428426069,80746.96490198,0.00019725,2]
[328477800,1717428576954,713.53973876,0.00019451,2]
[328477804,1717428632081,-226.51830624,0.000201,2]
[328477805,1717428632091,-826.0,0.000219,2]
[328477806,1717428632100,-173.95,0.00021918,2]
[328477807,1717428632110,-520.02,0.00024365,2]
[328477808,1717428632119,-159.86,0.00024384,2]
[328477809,1717428632130,-154.65,0.00024384,2]
[328477810,1717428632139,-826.0,0.000247,2]
[328477811,1717428632152,-499.99,0.000247,2]
[328477812,1717428632162,-1250.0,0.00025,2]
[328477813,1717428632171,-1034.0,0.000253,3]
[328477814,1717428632181,-500.0,0.00025902,2]
[328477815,1717428632190,-500.0,0.00025902,2]
[328477816,1717428632199,-500.0,0.00025902,2]
[328477817,1717428632208,-500.0,0.00025902,2]
[328477818,1717428632217,-500.0,0.00025902,2]
[328477819,1717428632226,-200.0,0.000262,2]
[328477820,1717428632235,-200.0,0.00026203,2]
[328477821,1717428632244,-250.0,0.00026226,2]
[328477822,1717428632253,-2751.0,0.00026233,2]
[328477823,1717428632262,-713.53973876,0.00026237,2]
[328477824,1717428632271,-23900.0,0.00026238,2]
[328477825,1717428632280,-250.0,0.00026244,2]
[328477826,1717428632290,-250.0,0.00026252,2]
[328477827,1717428632299,-150.0,0.00026276,2]
[328477828,1717428632308,-323.05,0.0002629,2]
[328477829,1717428632317,-968.89,0.00026404,2]
[328477830,1717428632326,-500.0,0.0002645,2]
[328477831,1717428632336,-154.649,0.0002645,2]
[328477832,1717428632345,-284.3,0.0002648,2]
[328477833,1717428632357,-244.35534191,0.00026521,2]
[328477834,1717428632366,-11079.79,0.00026522,2]
[328477835,1717428632376,-284.3,0.00026553,2]
[328477836,1717428632385,-284.3,0.00026625,2]
[328477837,1717428632396,-520.02,0.00026629,2]
[328477838,1717428632405,-155.54656387,0.00026638,2]
[328477839,1717428632414,-284.3,0.00026698,2]
[328477841,1717428632425,-702.44,0.00026708,2]
[328477843,1717428632435,-1000.0,0.00026711,2]
[328477845,1717428632445,-1028.35,0.00026741,2]
[328477847,1717428632454,-284.3,0.00026771,2]
[328477849,1717428632463,-3299.28,0.00026808,2]
[328477851,1717428632471,-53676.07,0.00026808,2]
[328477853,1717428632481,-1015.49191177,0.00026814,2]
[328477855,1717428632490,-23014.962,0.00026815,2]
[328477857,1717428632499,-284.3,0.00026843,2]
[328477859,1717428632508,-284.3,0.00026916,2]
[328477861,1717428632517,-167.0,0.00026967,2]
[328477863,1717428632528,-678.96,0.0002698,2]
[328477865,1717428632538,-284.3,0.00026989,2]
[328477867,1717428632547,-500.0,0.00026998,2]
[328477869,1717428632557,-500.0,0.00026998,2]
[328477871,1717428632566,-500.0,0.00026998,2]
[328477873,1717428632575,-500.0,0.00026998,2]
[328477875,1717428632584,-1300.0,0.00027,2]
[328477877,1717428632593,-734.41,0.00027022,2]
[328477879,1717428632603,-1793.31,0.00027047,2]
[328477880,1717428632612,-284.3,0.00027061,2]
[328477881,1717428632622,-167.97,0.0002712,2]
[328477882,1717428632631,-284.3,0.00027134,2]
[328477883,1717428632640,-284.3,0.00027206,2]
[328477884,1717428632651,-284.3,0.00027279,2]
[328477885,1717428632660,-284.3,0.00027352,2]
[328477886,1717428632670,-150.0,0.00027397,2]
[328477887,1717428632679,-223.98,0.00027397,10]
[328477888,1717428632688,-215.96,0.00027397,10]
[328477889,1717428632698,-179.97,0.00027397,10]
[328477890,1717428632708,-899.87,0.00027397,10]
[328477891,1717428632717,-284.3,0.00027424,2]
[328477892,1717428632727,-284.3,0.00027497,2]
[328477893,1717428632736,-500.0,0.00027546,2]
[328477895,1717428632746,-218.05,0.00027567,2]
[328477897,1717428632755,-284.3,0.0002757,2]
[328477899,1717428632764,-284.3,0.00027642,2]
[328477901,1717428632773,-167.0,0.00027646,2]
[328477903,1717428632782,-284.3,0.00027715,2]
[328477905,1717428632790,-284.3,0.00027788,2]
[328477907,1717428632799,-154.649,0.00027839,2]
[328477909,1717428632808,-284.3,0.0002786,2]
[328477910,1717428632817,-500.0,0.00028094,2]
[328477913,1717428632827,-500.0,0.00028094,2]
[328477915,1717428632836,-300.0,0.00028178,2]
[328477917,1717428632845,-678.96,0.00028329,2]
[328477919,1717428632854,-167.0,0.00028558,2]
[328477921,1717428632863,-180.0,0.00028868,2]
[328477923,1717428632873,-520.02,0.00028893,2]
[328477925,1717428632883,-1136.5934862,0.00029035,2]
[328477927,1717428632894,-177.88828219,0.0002909,2]
[328477929,1717428632903,-1368.13122646,0.0002909,2]
[328477931,1717428632912,-183.45,0.00029097,2]
[328477933,1717428632921,-172.66,0.00029125,2]
[328477935,1717428632931,-1000.0,0.00029127,2]
[328477937,1717428632940,-500.0,0.00029135,2]
[328477939,1717428632949,-500.0,0.00029135,2]
[328477941,1717428632959,-500.0,0.00029135,2]
[328477943,1717428632968,-500.0,0.00029135,2]
[328477945,1717428632978,-515.57449481,0.00029135,2]
[328477947,1717428632988,-500.0,0.00029135,2]
[328477949,1717428632997,-500.0,0.00029135,2]
[328477951,1717428633007,-500.0,0.00029135,2]
[328477953,1717428633018,-499.14942718,0.00029135,2]
[328477955,1717428633027,-500.0,0.00029135,2]
[328477956,1717428633038,-500.0,0.00029135,2]
[328477959,1717428633048,-500.0,0.00029135,2]
[328477960,1717428633058,-500.0,0.00029135,2]
[328477962,1717428633068,-500.0,0.00029135,2]
[328477964,1717428633077,-500.0,0.00029135,2]
[328477966,1717428633087,-500.0,0.00029135,2]
[328477968,1717428633096,-500.0,0.00029135,2]
[328477970,1717428633106,-500.0,0.00029135,2]
[328477972,1717428633115,-500.0,0.00029135,2]
[328477974,1717428633125,-500.0,0.00029135,2]
[328477977,1717428633135,-500.0,0.00029135,2]
[328477979,1717428633148,-500.0,0.00029135,2]
[328477981,1717428633158,-500.0,0.00029135,2]
[328477983,1717428633168,-327.10743139,0.00029135,2]
[328477985,1717428633177,-500.0,0.00029135,2]
[328477987,1717428633187,-500.0,0.00029135,2]
[328477988,1717428633196,-500.0,0.00029135,2]
[328477991,1717428633206,-500.0,0.00029135,2]
[328477993,1717428633215,-500.0,0.00029135,2]
[328477994,1717428633225,-500.0,0.00029135,2]
[328477996,1717428633234,-166.57215857,0.00029135,2]
[328477998,1717428633243,-130592.05365637,0.00029136,2]
[328478001,1717428633257,-909.3594811,0.00029136,2]
[328478003,1717428633268,-893.12553996,0.00029136,2]
[328478005,1717428633279,-1068.965344,0.00029136,2]
[328478009,1717428633306,-17299.1778373,0.00029136,2]
[328478011,1717428633315,-500.0,0.0002919,2]
[328478013,1717428633324,-500.0,0.0002919,2]
[328478015,1717428633339,-255.75495465,0.00029223,2]
[328478017,1717428633348,-156.04544168,0.00029336,2]
[328478019,1717428633359,-154.649,0.00029373,2]
[328478021,1717428633368,-150.0,0.00029413,2]
[328478023,1717428633379,-156.50549544,0.00029437,2]
[328478025,1717428633388,-161.5012716,0.0002947,2]
[328478027,1717428633403,-167.0,0.00029471,2]
[328478029,1717428633413,-1028.35,0.00029481,2]
[328478031,1717428633422,-1136.59348616,0.00029498,2]
[328478033,1717428633433,-2562.974876,0.000295,2]
[328478035,1717428633442,-300.0,0.00029548,2]
[328478037,1717428633451,-156.96255257,0.00029558,2]
[328478039,1717428633461,-155.74834842,0.00029652,2]
[328478041,1717428633471,-1368.13122643,0.00029677,2]
[328478043,1717428633481,-678.96,0.00029678,2]
[328478045,1717428633490,-153.21613593,0.00029698,2]
[328478047,1717428633500,-151.93380005,0.00029754,2]
[328478049,1717428633510,-3844.462314,0.000298,2]
[328478051,1717428633519,-1136.59348616,0.00029961,2]
[328478054,1717428633529,-287.25106551,0.00029968,2]
[328478055,1717428633539,-752.03196948,0.00029968,2]
[328478057,1717428633548,-5125.949752,0.0003,2]
[328478059,1717428633557,-532.61470148,0.0003,4]
[328478061,1717428633566,-308.5883833,0.00030036,2]
[328478063,1717428633575,-168.44763137,0.00030042,7]
[328478066,1717428633585,-151.93380005,0.00030055,7]
[328478067,1717428633594,-1015.49191176,0.00030056,2]
[328478069,1717428633604,-157.42620523,0.00030063,7]
[328478072,1717428633613,-166.90626717,0.0003009,7]
[328478073,1717428633623,-151.93380005,0.00030126,7]
[328478075,1717428633632,-152.9914788,0.00030128,7]
[328478077,1717428633641,-348.64,0.00030136,4]
[328478079,1717428633655,-500.0,0.00030136,4]
[328478080,1717428633664,-594.10080176,0.00030136,4]
[328478081,1717428633673,-500.0,0.00030136,4]
[328478082,1717428633683,-579.38,0.00030136,4]
[328478083,1717428633691,-583.07133229,0.00030136,4]
[328478084,1717428633700,-500.0,0.00030136,4]
[328478085,1717428633709,-500.0,0.00030136,4]
[328478086,1717428633718,-267.55,0.00030136,4]
[328478087,1717428633727,-500.0,0.00030136,4]
[328478088,1717428633736,-500.0,0.00030136,4]
[328478089,1717428633745,-500.0,0.00030136,4]
[328478090,1717428633755,-500.0,0.00030136,4]
[328478091,1717428633765,-500.0,0.00030136,4]
[328478092,1717428633774,-500.0,0.00030136,4]
[328478093,1717428633784,-500.0,0.00030136,4]
[328478094,1717428633793,-500.0,0.00030136,4]
[328478095,1717428633802,-500.0,0.00030136,4]
[328478096,1717428633811,-500.0,0.00030136,4]
[328478097,1717428633820,-500.0,0.00030136,4]
[328478098,1717428633830,-500.0,0.00030136,4]
[328478099,1717428633839,-349.5119632,0.00030136,4]
[328478100,1717428633849,-500.0,0.00030136,4]
[328478101,1717428633858,-500.0,0.00030136,4]
[328478102,1717428633868,-500.0,0.00030136,4]
[328478103,1717428633877,-500.0,0.00030136,4]
[328478104,1717428633887,-500.0,0.00030136,4]
[328478105,1717428633899,-500.0,0.00030136,4]
[328478106,1717428633908,-500.0,0.00030136,4]
[328478107,1717428633917,-500.0,0.00030136,4]
[328478108,1717428633926,-500.0,0.00030136,4]
[328478109,1717428633934,-565.29475714,0.00030136,4]
[328478110,1717428633944,-633.88,0.00030136,4]
[328478111,1717428633953,-601.32952637,0.00030136,4]
[328478112,1717428633963,-500.0,0.00030136,4]
[328478113,1717428633973,-500.0,0.00030136,4]
[328478114,1717428633982,-500.0,0.00030136,4]
[328478115,1717428633991,-500.0,0.00030136,4]
[328478116,1717428634001,-500.0,0.00030136,4]
[328478117,1717428634011,-248.72,0.00030136,4]
[328478118,1717428634020,-500.0,0.00030136,4]
[328478119,1717428634029,-500.0,0.00030136,4]
[328478120,1717428634039,-500.0,0.00030136,4]
[328478121,1717428634048,-782.25,0.00030136,4]
[328478122,1717428634058,-500.0,0.00030136,4]
[328478123,1717428634067,-500.0,0.00030136,4]
[328478124,1717428634076,-500.0,0.00030136,4]
[328478125,1717428634086,-500.0,0.00030136,4]
[328478126,1717428634095,-500.0,0.00030136,4]
[328478127,1717428634104,-1311.29,0.00030136,4]
[328478128,1717428634113,-526.14391038,0.00030136,4]
[328478129,1717428634122,-500.0,0.00030136,4]
[328478130,1717428634131,-500.0,0.00030136,4]
[328478131,1717428634140,-500.0,0.00030136,4]
[328478132,1717428634153,-500.0,0.00030136,4]
[328478133,1717428634162,-500.0,0.00030136,4]
[328478134,1717428634170,-500.0,0.00030136,4]
[328478135,1717428634179,-500.0,0.00030136,4]
[328478136,1717428634188,-516.85897763,0.00030136,4]
[328478137,1717428634198,-1081.08,0.00030136,4]
[328478138,1717428634208,-500.0,0.00030136,4]
[328478139,1717428634218,-525.39,0.00030136,4]
[328478140,1717428634227,-500.0,0.00030136,4]
[328478141,1717428634236,-500.0,0.00030136,4]
[328478142,1717428634245,-500.0,0.00030136,4]
[328478143,1717428634255,-500.0,0.00030136,4]
[328478144,1717428634266,-500.0,0.00030136,4]
[328478145,1717428634275,-849.78,0.00030136,4]
[328478146,1717428634286,-500.0,0.00030136,4]
[328478147,1717428634295,-500.0,0.00030136,4]
[328478148,1717428634304,-574.10664084,0.00030136,4]
[328478149,1717428634314,-1640.91,0.00030136,4]
[328478150,1717428634323,-500.0,0.00030136,4]
[328478151,1717428634335,-564.11,0.00030136,4]
[328478152,1717428634344,-500.0,0.00030136,4]
[328478153,1717428634354,-500.0,0.00030136,4]
[328478154,1717428634512,-500.0,0.00030136,4]
[328478155,1717428634522,-500.0,0.00030136,4]
[328478156,1717428634532,-571.16,0.00030136,4]
[328478157,1717428634541,-500.0,0.00030136,4]
[328478158,1717428634551,-634.05810766,0.00030136,4]
[328478159,1717428634560,-500.0,0.00030136,4]
[328478160,1717428634570,-648.69,0.00030136,4]
[328478161,1717428634580,-500.0,0.00030136,4]
[328478162,1717428634589,-500.0,0.00030136,4]
[328478163,1717428634599,-500.0,0.00030136,4]
[328478164,1717428634608,-552.05018326,0.00030136,4]